Cogmind - Beta 14 *** ADVENTURER MODE // 2024.12.31 @ 01:53:30 Player: icehewn Result: Self-destructed Performance ------------- Evolutions (1) 500 Regions Visited (3) 600 Robots Destroyed (65) 325 Value Destroyed (1948) 1948 Prototype IDs (7) 140 Alien Tech Used (0) 0 Bonus (0) 0 TOTAL SCORE: 3513 Bonus ------- None Cogmind --------- Core Integrity 88/400 Matter 259/300 Energy 100/100 System Corruption 0% Temperature Cool (6) Movement Core (100) Ox1 Location -9/Storage Parts ------- > --- POWER (1) -------- (None) > --- PROPULSION (2) --- (None) > --- UTILITY (4) ------ Medium Storage Unit Weight Redist. System Visual Processing Unit Signal Interpreter > --- WEAPON (2) ------- High-powered Shotgun > --- INVENTORY (10) --- Nuclear Core Aluminum Leg Medium Storage Unit Terrain Scan Processor Improved Targeting Computer Heavy Assault Rifle Heavy Assault Rifle Heavy Assault Rifle Heavy Assault Rifle Mini Grenade Launcher Peak State ------------ > --- POWER ------------ Nuclear Core > --- PROPULSION ------- Aluminum Leg Aluminum Leg > --- UTILITY ---------- Medium Storage Unit Weight Redist. System Visual Processing Unit Signal Interpreter > --- WEAPON ----------- High-powered Shotgun High-powered Shotgun > --- INVENTORY -------- Nuclear Core Aluminum Leg Medium Storage Unit Terrain Scan Processor Improved Targeting Computer Heavy Assault Rifle Heavy Assault Rifle Heavy Assault Rifle Mini Grenade Launcher [Rating: 18] Favorites ----------- Power Nuclear Core Engine Deuterium Engine Power Core Nuclear Core Propulsion Aluminum Leg Leg Aluminum Leg Wheel Compact Wheel Utility Visual Processing Unit Device Weight Redist. System Storage Medium Storage Unit Processor Visual Processing Unit Weapon Heavy Assault Rifle Energy Gun Small Laser Energy Cannon Advanced Beam Cannon Ballistic Gun Heavy Assault Rifle Launcher Grenade Launcher Build | -11 -10 -9 -9 ------- Run | Yrd Mat Mat Sto Slots Evolved 2 | . . 2 . Power . | . . . . Propulsion . | . . . . Utility 2 | . . 2 . Weapon . | . . . . Parts Attached 45 | 6 17 19 3 Power 6 | 1 1 4 . Engine 2 | 1 . 1 . Core 4 | . 1 3 . Reactor . | . . . . Propulsion 8 | 2 2 4 . Treads . | . . . . Leg 6 | . 2 4 . Wheel 2 | 2 . . . Hover . | . . . . Flight . | . . . . Utility 6 | 1 2 3 . Device 2 | . . 2 . Storage 2 | 1 1 . . Processor 2 | . 1 1 . Hackware . | . . . . Protection . | . . . . Artifact . | . . . . Weapon 25 | 2 12 8 3 Energy Gun 4 | 1 2 1 . Energy Cannon 1 | . . 1 . Ballistic Gun 14 | 1 5 5 3 Ballistic Cannon . | . . . . Launcher 6 | . 5 1 . Special Weapon . | . . . . Impact Weapon . | . . . . Slashing Weapon . | . . . . Piercing Weapon . | . . . . Special Melee Weapon . | . . . . Unidentified Prototypes 2 | . . 2 . Parts Lost 8 | . 1 2 5 Power 2 | . 1 . 1 Propulsion 2 | . . . 2 Utility 1 | . . 1 . Weapon 3 | . . 1 2 Highest Loss Streak 4 | . 1 2 4 To Critical Strikes . | . . . . Average Slot Usage (%) 95 | . 93 95 99 Engine 2 | . 4 2 . Core 8 | . 9 8 10 Leg 20 | . 15 22 21 Wheel 3 | . 12 . . Device 5 | . . 6 11 Storage 11 | . 14 11 11 Processor 18 | . 8 22 22 Energy Gun 1 | . 5 . . Ballistic Gun 20 | . 17 21 22 Launcher 1 | . 3 . . Peak Build Rating 18 | 6 13 17 18 Average Rating 13 | 5 9 15 17 On Entrance 9 | . 6 13 17 Naked Turns . | . . . . Heaviest Build 26 | 12 21 26 23 Greatest Support 32 | 32 32 26 26 Greatest Overweight (x) 1 | . 1 1 . Average Overweight (x) . | . . . . Largest Inventory Capacity 10 | 8 10 10 10 Average Capacity 9 | 7 9 10 10 Most Carried 10 | 5 10 10 10 Average Carried 8 | 2 7 9 9 Final Capacity 10 | 8 10 10 10 Final Carried 10 | 5 10 10 10 Class Distribution -------------------- 56% | Mutant 43% | Scavenger-Mutant Dominant Class ---------------- Mutant | -10/Materials Scavenger-Mutant | -9/Materials Scavenger-Mutant | -9/Storage Resources | -11 -10 -9 -9 ----------- Run | Yrd Mat Mat Sto Matter Collected 1333 | 156 296 671 210 Remotely . | . . . . Salvage Created 2101 | . 288 1362 451 Parts 160 | . 29 97 34 Haulers Intercepted 1 | . . . 1 Recyclers Shooed 2 | . . 2 . Parts Field Recycled . | . . . . Retrieved Matter . | . . . . Parts Self-Destructed . | . . . . Prevented . | . . . . Kills | -11 -10 -9 -9 ------- Run | Yrd Mat Mat Sto Combat Hostiles Destroyed 55 | . 12 32 11 Guns 45 | . 5 29 11 AOE 10 | . 7 3 . Classes Destroyed 6 | . 4 1 1 Builder 1 | . 1 . . Hauler 1 | . . . 1 Watcher 8 | . 1 5 2 Swarmer 12 | . 6 3 3 Grunt 30 | . 6 20 4 Sentry 13 | . . 9 4 Best Kill Streak 6 | . 4 6 5 Combat Bots Only 6 | . 4 6 5 Max Kills in Single Turn 4 | . 4 3 1 Gunslinging . | . . . . Exploded 3 | . 3 3 . Melee . | . . . . Uniques/NPCs Destroyed . | . . . . Combat | -11 -10 -9 -9 -------- Run | Yrd Mat Mat Sto Hostile Shots Fired 274 | . 43 161 70 Missed 76 | . 8 53 15 Damage Taken 1958 | . 328 1025 605 Core 374 | . 62 193 119 Absorbed by Shields . | . . . . Ignored by Resistances 579 | . 100 305 174 Regen/Repaired (Parts) 3 | . . 3 . Core Remaining (%) 87 | 100 75 . . Volleys Fired 165 | . 45 90 30 Largest 2 | . 2 2 2 Hottest 60 | . 60 53 50 Shots Fired 309 | . 72 177 60 Gun 299 | . 63 176 60 Cannon . | . . . . Launcher 10 | . 9 1 . Special . | . . . . Kinetic 280 | . 44 176 60 Thermal 19 | . 19 . . Explosive 10 | . 9 1 . Electromagnetic . | . . . . Robot Hit Streak 24 | . 13 24 20 Robot Miss Streak 3 | . 3 3 2 Penetration Max . | . . . . Secondary Targets 10 | . . 7 3 Max Gunslinging Chain 1 | . . 1 1 Shots Hit Robots 232 | . 50 133 49 Core Hits 101 | . 23 57 21 Critical Kills 1 | . . 1 . Critical Parts Destroyed . | . . . . Critical Strikes 1 | . . 1 . Destroy 1 | . . 1 . Melee Attacks . | . . . . Impact . | . . . . Slashing . | . . . . Piercing . | . . . . Sneak Attacks . | . . . . Combat Hostiles . | . . . . Follow-up Attacks . | . . . . Damage Inflicted 3951 | . 877 2161 913 Guns 3382 | . 472 1997 913 Cannons . | . . . . Explosions 547 | . 401 146 . Melee . | . . . . Ramming 22 | . 4 18 . Kinetic 3194 | . 284 1997 913 Thermal 188 | . 188 . . Explosive 547 | . 401 146 . Electromagnetic . | . . . . Impact . | . . . . Slashing . | . . . . Piercing . | . . . . Highest Corruption . | . . . . Average Corruption . | . . . . Corruption Purged . | . . . . Corruption Blocked . | . . . . Overload Shots . | . . . . Overflow Damage 10 | . 10 . . Projectiles . | . . . . Explosions 10 | . 10 . . Melee . | . . . . Knockbacks . | . . . . Impact . | . . . . Kinetic . | . . . . Secondary . | . . . . Self-Inflicted Damage 2 | . 2 . . Shots . | . . . . Rammed 1 | . 1 . . Targets Rammed 7 | . 1 6 . Kicked 6 | . . 6 . Crushed . | . . . . Highest Temperature 101 | . 101 21 15 Average Temperature 21 | . 32 7 5 Received Heat Transfer 1095 | . 210 630 255 Siege Activations . | . . . . Robots Corrupted . | . . . . Combat Hostiles . | . . . . Parts Fried . | . . . . Impact Corruptions . | . . . . Robots Melted . | . . . . Combat Hostiles . | . . . . Parts Melted . | . . . . Heat Transferred 425 | . 425 . . Parts Sabotaged . | . . . . Parts Stolen . | . . . . Parts Stripped . | . . . . Power Chain Reactions . | . . . . Alert | -11 -10 -9 -9 ------- Run | Yrd Mat Mat Sto Peak Influence 324 | . 324 173 318 Initial 16 | . . 16 . Average 66 | . 73 52 143 Maximum Alert Level 1 | . 1 . 1 Low Security (%) 93 | 100 85 100 73 Level 1 6 | . 14 . 26 Level 2 . | . . . . Level 3 . | . . . . Level 4 . | . . . . Level 5 . | . . . . High Security . | . . . . Max Security . | . . . . Squads Dispatched 9 | . 4 5 . Investigation 7 | . 4 3 . Extermination . | . . . . Reinforcement 2 | . . 2 . Assault . | . . . . Garrison . | . . . . Intercept . | . . . . Searches Triggered . | . . . . Construction Impeded . | . . . . Haulers Reinforced . | . . . . Active Scanning Responses . | . . . . Cargo Convoy Interrupts . | . . . . Stealth | -11 -10 -9 -9 --------- Run | Yrd Mat Mat Sto Distress Signals 6 | . . 3 3 Communications Jammed . | . . . . Distress Signals . | . . . . Times Spotted 76 | . 19 40 17 Peak Tracking Total 6 | . 4 6 4 Tactical Retreats . | . . . . Traps | -11 -10 -9 -9 ------- Run | Yrd Mat Mat Sto Traps Triggered 3 | . 3 . . Indirectly . | . . . . Trap Hack Attempts . | . . . . Triggered . | . . . . Disarmed . | . . . . Reprogrammed . | . . . . Reused . | . . . . Traps Extracted . | . . . . Installed . | . . . . Triggered . | . . . . Machines | -11 -10 -9 -9 ---------- Run | Yrd Mat Mat Sto Machines Disabled 1 | . . 1 . Max in Single Turn 1 | . . 1 . Machines Repaired . | . . . . Machines Dismantled . | . . . . Machines Sabotaged . | . . . . Overloaded Fab Kills . | . . . . Hacking | -11 -10 -9 -9 --------- Run | Yrd Mat Mat Sto Machines Accessed 22 | . 7 13 2 Terminals 17 | . 6 9 2 Fabricators . | . . . . Repair Stations 1 | . . 1 . Recycling Units 3 | . 1 2 . Scanalyzers 1 | . . 1 . Garrison Access . | . . . . Total Hacks 67 | . 25 39 3 Successful 46 | . 22 23 1 Failed 21 | . 3 16 2 Catastrophic 1 | . . . 1 Database Lockouts . | . . . . Manual 38 | . 12 25 1 Terminals 54 | . 21 30 3 Fabricators . | . . . . Repair Stations 2 | . . 2 . Recycling Units 7 | . 4 3 . Scanalyzers 4 | . . 4 . Garrison Access . | . . . . Terminal Hacks 19 | . 10 8 1 Robot Analysis 1 | . 1 . . Prototype ID Bank 4 | . 2 2 . Open Door 1 | . . . 1 Unreport Threat 5 | . 1 4 . Locate Traps 2 | . 2 . . Maintenance Status 1 | . 1 . . Transport Status 1 | . 1 . . Recall Investigation 2 | . 1 1 . Recall Reinforcements 1 | . . 1 . Recall Assault 1 | . 1 . . Fabricator Hacks . | . . . . Repair Station Hacks 2 | . . 2 . Scan Component 1 | . . 1 . Repair 1 | . . 1 . Recycling Unit Hacks 7 | . 4 3 . Process 1 | . 1 . . Report Inventory 2 | . 1 1 . Retrieve Matter 3 | . 2 1 . Retrieve Components 1 | . . 1 . Scanalyzer 4 | . . 4 . Insert Component 2 | . . 2 . Analyze 2 | . . 2 . Garrison Access Hacks . | . . . . Unauthorized Hacks 14 | . 8 6 . Terminals 14 | . 8 6 . Track 3 | . 2 1 . Assimilate 2 | . 1 1 . Botnet 9 | . 5 4 . Fabricators . | . . . . Repair Stations . | . . . . Recycling Units . | . . . . Scanalyzers . | . . . . Garrison Access . | . . . . Data Cores Recovered . | . . . . Used . | . . . . Hacking Detections 15 | . 6 8 1 Full Trace Events 8 | . 3 5 . Feedback Events . | . . . . Feedback Blocked . | . . . . Robot Schematics Acquired . | . . . . Robots Built . | . . . . Authchips . | . . . . Time . | . . . . Total Robot Build Rating . | . . . . Part Schematics Acquired 2 | . . 2 . Parts Built . | . . . . Authchips . | . . . . Time . | . . . . Total Part Build Rating . | . . . . Parts Repaired 1 | . . 1 . Time 38 | . . 38 . Parts Recycled . | . . . . Recycled Matter 154 | . 154 . . Retrieved Matter 308 | . 308 . . Retrieved Components 10 | . . 10 . Parts Scanalyzed 2 | . . 2 . Part Schematics Acquired 2 | . . 2 . Parts Damaged 1 | . . 1 . Bothacking | -11 -10 -9 -9 ------------ Run | Yrd Mat Mat Sto Used RIF Installer . | . . . . Robots Hacked . | . . . . Non-combat . | . . . . Combat . | . . . . Robot Hacks Applied . | . . . . Relay Couplers Released . | . . . . Fabnet Peak Effective % . | . . . . Robots Rewired . | . . . . Allies Hacked . | . . . . Hacks Repelled . | . . . . Allies | -11 -10 -9 -9 -------- Run | Yrd Mat Mat Sto Total Allies 1 | . . 1 . Largest Group 1 | . . 1 1 Highest-Rated Group 10 | . . 10 9 Highest-Rated Ally 10 | . . 10 9 Total Orders 1 | . . 1 . FOLLOW 1 | . . 1 . Ally Attacks . | . . . . Total Damage . | . . . . Kills . | . . . . Allies Corrupted . | . . . . Allies Melted . | . . . . Intel | -11 -10 -9 -9 ------- Run | Yrd Mat Mat Sto Robot Analysis Total 1 | . 1 . . Derelict Logs Recovered . | . . . . Drone Launches . | . . . . Drone Recoveries . | . . . . Exploration | -11 -10 -9 -9 ------------- Run | Yrd Mat Mat Sto Turns Passed 4016 | 60 1149 2429 378 Spaces Moved 2069 | 48 668 1183 170 Core 3 | 3 . . . Treads . | . . . . Legs 1632 | . 279 1183 170 Wheels 434 | 45 389 . . Hover . | . . . . Flight . | . . . . Fastest Speed 50 | 50 100 120 120 Average Speed 147 | 96 127 165 120 Slowest Speed 190 | 100 190 190 120 Overloaded Moves . | . . . . Propulsion Burnouts . | . . . . Robots Hopped . | . . . . Cave-ins Triggered . | . . . . Exploration Rate (%) 54 | 3 89 88 37 Regions Visited 3 Branch Regions 1 Pre-discovered Areas . | . . . . Known Exits Taken 1 | . . 1 . Unknown Exits Taken 2 | 1 1 . . Scrap Searched . | . . . . Spaces Dug . | . . . . Terrain Destroyed 67 | . 57 10 . Melee . | . . . . Projectile . | . . . . AOE 67 | . 57 10 . Terrain Rammed . | . . . . Walls Destroyed . | . . . . Machines Disabled . | . . . . Actions | -11 -10 -9 -9 --------- Run | Yrd Mat Mat Sto Total 2714 | 58 894 1479 283 Wait 370 | . 147 144 79 Move 2066 | 47 667 1182 170 Hop . | . . . . Pick Up 31 | 5 8 17 1 Fast Attach 11 | 6 4 1 . Attach 7 | . 1 5 1 Detach 3 | . 3 . . Swap 27 | . 12 13 2 Drop 27 | . 6 21 . Fire 165 | . 45 90 30 Melee . | . . . . Ram 1 | . 1 . . Kick 6 | . . 6 . Crush . | . . . . Escape Stasis . | . . . . Rewire . | . . . . Trap . | . . . . Miscellaneous . | . . . . Route ------- -11/Scrapyard -10/Materials (discovered 5 exits: *Mat x3 / [*Min x2]) -9/Materials (discovered 4 exits: [*Mat x2] / [*Min] / *Sto) -9/Storage History --------- Turn | Location | Event 8 | -11/Scrapyard | Discovered new exit (range 16) 61 | -11/Scrapyard | Entered Materials 202 | -10/Materials | Discovered new exit (range 12) 338 | -10/Materials | Build established: Mutant 347 | -10/Materials | Discovered new exit (range 10) 523 | -10/Materials | Discovered new exit (range 13) 783 | -10/Materials | Discovered new exit (range 4) 1063 | -10/Materials | Discovered new exit (range 18) 1210 | -10/Materials | Entered another Materials area 1210 | -9/Materials | Evolved 2 slots: Utility x2 1457 | -9/Materials | Repaired Lgt. Nuclear Core 1537 | -9/Materials | Discovered new exit (range 17) 2029 | -9/Materials | Discovered new exit (range 18) 2386 | -9/Materials | Discovered new exit (range 17) 2397 | -9/Materials | Discovered new exit (range 7) 2479 | -9/Materials | Identified exit to Storage 2569 | -9/Materials | Build established: Scavenger-Mutant 3639 | -9/Materials | Entered Storage 3639 | -9/Storage | Accompanied by 1 ally 3700 | -9/Storage | Core integrity fell below 50% 4017 | -9/Storage | Self-destructed Last Messages --------------- 03916_ K-01 Serf collects debris. 03919_ S-10 Pest destroyed. 03922_ Switching to secondary target: Y-45 Defender. 03925_ Y-45 Defender destroyed. 03935_ Connecting with Terminal... 03936_ R-06 Scavenger collects Flight Unit. 03940_ R-06 Scavenger collects Lgt. Ion Engine. 03943_ R-06 Scavenger collects Imp. Ion Engine. 03952_ R-06 Scavenger collects Heat Sink. 03993_ A-02 Transporter destroyed. 03994_ Acquired 43 matter. 03997_ K-01 Serf collects debris. 04001_ Aluminum Leg destroyed. 04001_ K-01 Serf collects debris. 04007_ Nuclear Core destroyed. 04007_ Aluminum Leg destroyed. 04013_ Critical hit (Burn: +37). 04014_ Y-45 Defender destroyed. 04014_ Switching to secondary target: Y-45 Defender. 04015_ Hpw. Shotgun destroyed. Map ----- +----------------------------------------------------+ | | | | | | | | | | | | | | | | | | | | | ?????????????????????????????????????????????????? | | ?????????????????????????????????????????????????? | | ?????????????????????????????????????????????????? | | ?????????????????????????????????????????????????? | | ?????????????????????????????????????????????????? | | ?????????????????????????????????????????????????? | | ????????????????????????###??????????????????????? | | ???????????????????????? ??????????????????????? | | ???????????????????????? ??????????????????????? | | ???????????????????????? ??????????????????????? | | ???????????????????????? ??????????????????#???? | | ???????????????????????? Y!????????????????? ##??? | | ????????????????????????#]#????????????????? ##+# | | ????????????????????????#[#????????????????? ? | | ??????????????????????###/######+###+?????? ?? | | ??????????????????????#![@[ # ??????? ???? | | ??????????????????????# r] # #########+###??? | | ??????????????????????# Y # #??? | | ??????????????????????# Y# # #??? | | ??????????????????????# r + #??? | | ??????????????????????# ! # # #??? | | ??????????????????????# # # #??? | | ??????????????????????# k# # #??? | | ??????????????????????# ! # # #??? | | ??????????????????????# = # ##/##########??? | | ??????????????????????# # ##??????????? | | ??????????????????????######### #??????????? | | ??????????????????????????????# #??????????? | | ??????????????????????????????# #??????????? | | ??????????????????????????????# #??????????? | | ??????????????????????????????# #??????????? | | ??????????????????????????????# #??????????? | | ??????????????????????????????# #??????????? | | ??????????????????????????????# #??####????? | | ??????????????????????????????# #??#T"#????? | | ??????????????????????????????##### #### "####+# | | ??????????????????????????????????# * | | ??????????????????????????????????# %[ | | ??????????????????????????????????# *%=%" | | ??????????????????????????????????# ############ | +----------------------------------------------------+ Best States ------------- Heat Dissipation 38 Energy Generation 14 Energy Capacity 275 Matter Stores 300 Matter Capacity 300 Sight Range 18 Terrain Scan Density 10 Additional Mass Support 6 Resistance: KI 20 Resistance: TH 20 Resistance: EX 20 Resistance: EM 20 Resistance: I 20 Resistance: S 20 Resistance: P 20 Evasion (%) 55 Offensive Hacking 10 Item Schematics ----------------- Hvy. Assault Rifle | -9/Materials | Scanalyzed Med. Storage Unit | -9/Materials | Scanalyzed Robot Schematics ------------------ None Fabricated ------------ Nothing Alien Tech Used ----------------- None Achievements -------------- None Challenges ------------ None Game ------ Seed MiniIntegratedReplica Manual? 0 Play Time 00:41:24 Cumulative 32.2 hours Start 2024.12.30 @ 16:17:03 End 2024.12.31 @ 01:53:30 Sessions 3 Manual Loads 0 Difficulty Adventurer Special Mode None Game No. 34 Rogue 0 Adventurer 34 Explorer 0 Win Type - Total 0 Types 0/0/0/0/0/0/0/0/0 Lore% 10 Gallery% 25 Achievement% 25 Wizard Run 0 Options --------- Layout 1 ASCII 0 Keyboard 1 Movement Arrows Keybinds 0 Fullscreen 2 Font 32/SmallcapsGlow Map View 77x35 Zoom Use 0% Tactical HUD 1 Map Filters NONE Filters NONE Steam 1 RUN: 684aea0b-1279-4092-9af1-5472943c0f8a